[Event "*** Titled Tuesday Blitz"]
[Site "Chess.com"]
[Date "2020.03.03"]
[Round "1"]
[White "francyIM"]
[Black "SanchezKelvin"]
[Result "1-0"]
[WhiteElo "2703"]
[BlackElo "2351"]
[TimeControl "180+1"]
[EndTime "13:08:06 PST"]
[Termination "francyIM won by resignation"]

1. e4 {[%clk 0:02:59.8]} 1... c5 {[%clk 0:02:55.9]} 2. c3 {[%clk 0:02:58.3]}
2... d5 {[%clk 0:02:55.7]} 3. exd5 {[%clk 0:02:58.7]} 3... Qxd5 {[%clk
0:02:56.6]} 4. d4 {[%clk 0:02:57]} 4... Nc6 {[%clk 0:02:55.2]} 5. Nf3 {[%clk
0:02:57]} 5... cxd4 {[%clk 0:02:54.8]} 6. cxd4 {[%clk 0:02:56.1]} 6... e5 {[%clk
0:02:55]} 7. Nc3 {[%clk 0:02:54.6]} 7... Bb4 {[%clk 0:02:52.1]} 8. dxe5 {[%clk
0:02:50]} 8... Qxd1+ {[%clk 0:02:46.2]} 9. Kxd1 {[%clk 0:02:48.9]} 9... Bg4
{[%clk 0:02:46.8]} 10. Be2 {[%clk 0:02:48.5]} 10... O-O-O+ {[%clk 0:02:46.5]}
11. Kc2 {[%clk 0:02:48]} 11... Bxf3 {[%clk 0:02:46.3]} 12. Bxf3 {[%clk
0:02:48.9]} 12... Nxe5 {[%clk 0:02:30.9]} 13. Be2 {[%clk 0:02:45.5]} 13... Ne7
{[%clk 0:02:30]} 14. Be3 {[%clk 0:02:42.9]} 14... N5c6 {[%clk 0:02:09.8]} 15. a3
{[%clk 0:02:30.8]} 15... Bxc3 {[%clk 0:02:04.3]} 16. bxc3 {[%clk 0:02:29.8]}
16... Nd5 {[%clk 0:02:04]} 17. Bd2 {[%clk 0:02:29]} 17... Rhe8 {[%clk
0:01:59.3]} 18. Rhe1 {[%clk 0:02:27.9]} 18... g6 {[%clk 0:01:58.7]} 19. a4
{[%clk 0:02:26.9]} 19... f5 {[%clk 0:01:57.7]} 20. a5 {[%clk 0:02:25.8]} 20...
a6 {[%clk 0:01:57.6]} 21. Bc4 {[%clk 0:02:24.6]} 21... Nc7 {[%clk 0:01:43.5]}
22. Be3 {[%clk 0:02:20.7]} 22... Nd5 {[%clk 0:01:27.4]} 23. Bxd5 {[%clk
0:02:15.5]} 23... Rxd5 {[%clk 0:01:21.9]} 24. Bb6 {[%clk 0:02:14.8]} 24... Kd7
{[%clk 0:01:16.9]} 25. Rad1 {[%clk 0:02:08]} 25... Rxe1 {[%clk 0:01:03.8]} 26.
Rxe1 {[%clk 0:02:07.5]} 26... Nxa5 {[%clk 0:01:01]} 27. Bd4 {[%clk 0:02:02.1]}
27... Nc6 {[%clk 0:00:59.8]} 28. Be3 {[%clk 0:02:02.1]} 28... b5 {[%clk
0:00:58.5]} 29. Ra1 {[%clk 0:02:01.3]} 29... a5 {[%clk 0:00:58.5]} 30. c4 {[%clk
0:01:56.6]} 30... bxc4 {[%clk 0:00:57.4]} 31. Kc3 {[%clk 0:01:56.8]} 31... f4
{[%clk 0:00:46]} 32. Bb6 {[%clk 0:01:50.6]} 32... Rb5 {[%clk 0:00:44.5]} 33.
Rd1+ {[%clk 0:01:49.3]} 33... Ke6 {[%clk 0:00:41.9]} 34. Re1+ {[%clk 0:01:48]}
34... Kf7 {[%clk 0:00:39.5]} 35. Bc7 {[%clk 0:01:41.6]} 35... Nb4 {[%clk
0:00:30.1]} 36. Kxc4 {[%clk 0:01:37.4]} 36... Rc5+ {[%clk 0:00:28.3]} 37. Kxc5
{[%clk 0:01:35.4]} 37... Nd3+ {[%clk 0:00:28.9]} 38. Kb5 {[%clk 0:01:31.2]}
38... Nxe1 {[%clk 0:00:29.3]} 39. Bxf4 {[%clk 0:01:30.9]} 39... Nxg2 {[%clk
0:00:29.3]} 40. Bg3 {[%clk 0:01:30.9]} 40... Ke6 {[%clk 0:00:29.8]} 41. Kxa5
{[%clk 0:01:31.1]} 41... Kf5 {[%clk 0:00:30.4]} 42. Kb4 {[%clk 0:01:31.6]} 42...
h5 {[%clk 0:00:31]} 43. Kc3 {[%clk 0:01:31.6]} 43... Ke4 {[%clk 0:00:31.4]} 44.
Kc4 {[%clk 0:01:27.7]} 44... h4 {[%clk 0:00:30.6]} 45. Bb8 {[%clk 0:01:27.3]}
45... g5 {[%clk 0:00:30.6]} 46. Kc5 {[%clk 0:01:23.2]} 46... Nf4 {[%clk
0:00:30.3]} 47. Kd6 {[%clk 0:01:22.1]} 47... Nd3 {[%clk 0:00:29.1]} 48. Ke6
{[%clk 0:01:20.2]} 48... Nxf2 {[%clk 0:00:25.1]} 49. Kf6 {[%clk 0:01:19.1]}
49... g4 {[%clk 0:00:25.4]} 50. Kg5 {[%clk 0:01:19.1]} 50... h3 {[%clk
0:00:24.3]} 51. Kh4 {[%clk 0:01:19]} 51... Kf3 {[%clk 0:00:24.3]} 52. Bc7 {[%clk
0:01:19]} 52... Ne4 {[%clk 0:00:24.1]} 53. Be5 {[%clk 0:01:17.3]} 53... Nc5
{[%clk 0:00:23.2]} 54. Bd6 {[%clk 0:01:15.4]} 54... Nd3 {[%clk 0:00:22.6]} 55.
Bc7 {[%clk 0:01:13]} 55... Nf4 {[%clk 0:00:22.3]} 56. Bb6 {[%clk 0:01:05.3]}
56... g3 {[%clk 0:00:20.6]} 57. Bg1 {[%clk 0:01:04.4]} 57... g2 {[%clk
0:00:19.4]} 58. Bc5 {[%clk 0:01:03.7]} 58... Ke2 {[%clk 0:00:19.5]} 59. Kg3
{[%clk 0:01:02.4]} 59... Kf1 {[%clk 0:00:19.1]} 60. Kxf4 {[%clk 0:01:01.6]}
60... g1=Q {[%clk 0:00:19.2]} 61. Bxg1 {[%clk 0:01:01.9]} 61... Kxg1 {[%clk
0:00:19.8]} 62. Kg3 {[%clk 0:01:02.8]} 62... Kf1 {[%clk 0:00:20.2]} 63. Kxh3
{[%clk 0:01:02.9]} 63... Kf2 {[%clk 0:00:20.3]} 64. Kg4 {[%clk 0:01:03.2]} 64...
Ke3 {[%clk 0:00:21.2]} 65. h4 {[%clk 0:01:04.1]} 65... Ke4 {[%clk 0:00:22]} 66.
h5 {[%clk 0:01:04.7]} 66... Ke5 {[%clk 0:00:22.9]} 67. Kg5 {[%clk 0:01:05]} 1-0

[Event "*** Titled Tuesday Blitz"]
[Site "Chess.com"]
[Date "2020.03.03"]
[Round "1"]
[White "JozefKneht"]
[Black "Megagigahiper3345"]
[Result "1/2-1/2"]
[WhiteElo "2563"]
[BlackElo "2097"]
[TimeControl "180+1"]
[EndTime "13:08:09 PST"]
[Termination "Game drawn by repetition"]

1. e4 {[%clk 0:02:59.9]} 1... c5 {[%clk 0:02:37.9]} 2. Nf3 {[%clk 0:02:57.3]}
2... g6 {[%clk 0:02:37.5]} 3. d4 {[%clk 0:02:56.5]} 3... cxd4 {[%clk 0:02:36]}
4. Nxd4 {[%clk 0:02:57.4]} 4... Nc6 {[%clk 0:02:35.2]} 5. c4 {[%clk 0:02:56.5]}
5... Nf6 {[%clk 0:02:34.1]} 6. Nc3 {[%clk 0:02:56.2]} 6... Nxd4 {[%clk
0:02:34.6]} 7. Qxd4 {[%clk 0:02:55.4]} 7... d6 {[%clk 0:02:35.5]} 8. Be3 {[%clk
0:02:53.1]} 8... Bg7 {[%clk 0:02:35.8]} 9. Be2 {[%clk 0:02:53.4]} 9... O-O
{[%clk 0:02:35.8]} 10. Qd2 {[%clk 0:02:53.8]} 10... Bd7 {[%clk 0:02:36.2]} 11.
f3 {[%clk 0:02:50.6]} 11... a5 {[%clk 0:02:33]} 12. O-O {[%clk 0:02:49.1]} 12...
Bc6 {[%clk 0:02:33.1]} 13. b3 {[%clk 0:02:45.3]} 13... Nd7 {[%clk 0:02:33]} 14.
Rab1 {[%clk 0:02:44.1]} 14... Nc5 {[%clk 0:02:28.3]} 15. Rfc1 {[%clk 0:02:42.6]}
15... Be5 {[%clk 0:02:20]} 16. Bf1 {[%clk 0:01:59.5]} 16... e6 {[%clk
0:02:08.3]} 17. Qf2 {[%clk 0:01:47.9]} 17... f5 {[%clk 0:01:49.6]} 18. exf5
{[%clk 0:01:39.7]} 18... Rxf5 {[%clk 0:01:46.6]} 19. Ne2 {[%clk 0:01:32.1]}
19... Nd3 {[%clk 0:01:30.8]} 20. Bb6 {[%clk 0:01:24.7]} 20... Bxh2+ {[%clk
0:00:41.7]} 21. Kxh2 {[%clk 0:01:22.1]} 21... Rh5+ {[%clk 0:00:41.1]} 22. Kg1
{[%clk 0:01:21.2]} 22... Rh1+ {[%clk 0:00:13.3]} 23. Kxh1 {[%clk 0:01:20.6]}
23... Nxf2+ {[%clk 0:00:13.7]} 24. Bxf2 {[%clk 0:01:20.4]} 24... Qf6 {[%clk
0:00:14.3]} 25. Nd4 {[%clk 0:01:16.4]} 25... Bd7 {[%clk 0:00:12.8]} 26. Re1
{[%clk 0:01:14.7]} 26... g5 {[%clk 0:00:10.1]} 27. Rbd1 {[%clk 0:01:13.3]} 27...
h5 {[%clk 0:00:10.1]} 28. Kg1 {[%clk 0:01:13]} 28... g4 {[%clk 0:00:10.1]} 29.
fxg4 {[%clk 0:01:11]} 29... hxg4 {[%clk 0:00:11]} 30. Bg3 {[%clk 0:01:11]} 30...
e5 {[%clk 0:00:11]} 31. Nb5 {[%clk 0:01:10.4]} 31... Bxb5 {[%clk 0:00:10.8]} 32.
cxb5 {[%clk 0:01:10]} 32... Kf7 {[%clk 0:00:10.7]} 33. Bc4+ {[%clk 0:01:09.5]}
33... Ke7 {[%clk 0:00:11.2]} 34. Rf1 {[%clk 0:01:07.9]} 34... Qh6 {[%clk
0:00:10.4]} 35. Rf7+ {[%clk 0:01:05.8]} 35... Ke8 {[%clk 0:00:11]} 36. Re1
{[%clk 0:00:46.9]} 36... Rd8 {[%clk 0:00:10.1]} 37. Rf2 {[%clk 0:00:39.5]} 37...
Rd7 {[%clk 0:00:07.6]} 38. Kf1 {[%clk 0:00:26.4]} 38... Qh1+ {[%clk 0:00:06.9]}
39. Ke2 {[%clk 0:00:26.1]} 39... Qh7 {[%clk 0:00:07.8]} 40. Kd2 {[%clk
0:00:22.4]} 40... Qh6+ {[%clk 0:00:07.6]} 41. Kc2 {[%clk 0:00:21.6]} 41... b6
{[%clk 0:00:07.9]} 42. Kb2 {[%clk 0:00:20.6]} 42... Qg7 {[%clk 0:00:07.3]} 43.
Ka3 {[%clk 0:00:20.1]} 43... Qe7 {[%clk 0:00:05.5]} 44. Bd5 {[%clk 0:00:19.9]}
44... Rc7 {[%clk 0:00:06.1]} 45. Ref1 {[%clk 0:00:19.4]} 45... Rc5 {[%clk
0:00:04.7]} 46. Bc6+ {[%clk 0:00:18.9]} 46... Rxc6 {[%clk 0:00:04.6]} 47. bxc6
{[%clk 0:00:17.1]} 47... d5+ {[%clk 0:00:05.5]} 48. Kb2 {[%clk 0:00:16.9]} 48...
Qc5 {[%clk 0:00:05.5]} 49. Rf8+ {[%clk 0:00:16.3]} 49... Ke7 {[%clk 0:00:05.4]}
50. c7 {[%clk 0:00:16.3]} 50... Qd4+ {[%clk 0:00:05.4]} 51. Kb1 {[%clk
0:00:14.5]} 51... Qd3+ {[%clk 0:00:05.7]} 52. Kc1 {[%clk 0:00:14.5]} 52... Qc3+
{[%clk 0:00:05.9]} 53. Kd1 {[%clk 0:00:14.2]} 53... Qd3+ {[%clk 0:00:06.3]} 54.
Kc1 {[%clk 0:00:14]} 54... Qc3+ {[%clk 0:00:06.2]} 55. Kb1 {[%clk 0:00:14.1]}
55... Qd3+ {[%clk 0:00:06.5]} 56. Kb2 {[%clk 0:00:14.3]} 56... Qd2+ {[%clk
0:00:03.9]} 57. Ka3 {[%clk 0:00:12.1]} 57... Qb4+ {[%clk 0:00:04.3]} 58. Kb2
{[%clk 0:00:11.9]} 58... Qd2+ {[%clk 0:00:04]} 59. Kb1 {[%clk 0:00:11.9]} 59...
Qd3+ {[%clk 0:00:04.1]} 1/2-1/2

[Event "*** Titled Tuesday Blitz"]
[Site "Chess.com"]
[Date "2020.03.03"]
[Round "1"]
[White "floplover"]
[Black "Abund"]
[Result "1-0"]
[WhiteElo "2360"]
[BlackElo "2681"]
[TimeControl "180+1"]
[EndTime "13:08:16 PST"]
[Termination "floplover won on time"]

1. d4 {[%clk 0:03:00.4]} 1... Nf6 {[%clk 0:02:57.2]} 2. c4 {[%clk 0:03:00]} 2...
g6 {[%clk 0:02:49.6]} 3. Nc3 {[%clk 0:02:59.3]} 3... d5 {[%clk 0:02:49.7]} 4.
cxd5 {[%clk 0:02:59.2]} 4... Nxd5 {[%clk 0:02:50.6]} 5. e4 {[%clk 0:02:57.7]}
5... Nxc3 {[%clk 0:02:50.8]} 6. bxc3 {[%clk 0:02:58.6]} 6... Bg7 {[%clk
0:02:51.5]} 7. Qa4+ {[%clk 0:02:59]} 7... Nd7 {[%clk 0:02:48.3]} 8. e5 {[%clk
0:02:34.3]} 8... O-O {[%clk 0:02:43.9]} 9. Nf3 {[%clk 0:02:32.8]} 9... a6 {[%clk
0:02:31.6]} 10. h4 {[%clk 0:02:28.7]} 10... b5 {[%clk 0:02:30.5]} 11. Qb3 {[%clk
0:02:25.2]} 11... Nb6 {[%clk 0:02:22.9]} 12. h5 {[%clk 0:02:22.4]} 12... Be6
{[%clk 0:02:19.5]} 13. Qc2 {[%clk 0:02:18.2]} 13... Bf5 {[%clk 0:02:10.1]} 14.
Bd3 {[%clk 0:02:13.2]} 14... Bxd3 {[%clk 0:02:10.1]} 15. Qxd3 {[%clk 0:02:14.1]}
15... c5 {[%clk 0:02:10]} 16. hxg6 {[%clk 0:02:12.2]} 16... fxg6 {[%clk
0:01:46.6]} 17. Ng5 {[%clk 0:01:58.4]} 17... Rf5 {[%clk 0:01:22.8]} 18. g4
{[%clk 0:00:50.8]} 18... Rxe5+ {[%clk 0:01:12.4]} 19. Kf1 {[%clk 0:00:46.5]}
19... Rxg5 {[%clk 0:01:06.4]} 20. Bxg5 {[%clk 0:00:45.8]} 20... Qd5 {[%clk
0:01:07]} 21. Qh3 {[%clk 0:00:26.7]} 21... Qxg5 {[%clk 0:01:02.3]} 22. Qxh7+
{[%clk 0:00:25.3]} 22... Kf7 {[%clk 0:01:02.5]} 23. Qh3 {[%clk 0:00:25.1]} 23...
cxd4 {[%clk 0:00:54.9]} 24. cxd4 {[%clk 0:00:24.2]} 24... Rd8 {[%clk 0:00:48.2]}
25. Re1 {[%clk 0:00:20.8]} 25... Rxd4 {[%clk 0:00:43.4]} 26. Qf3+ {[%clk
0:00:17.2]} 26... Rf4 {[%clk 0:00:40.2]} 27. Qe3 {[%clk 0:00:16.4]} 27... Qf6
{[%clk 0:00:10.5]} 28. g5 {[%clk 0:00:14.2]} 28... Qd6 {[%clk 0:00:09.5]} 29.
Rh7 {[%clk 0:00:12.6]} 29... Nc4 {[%clk 0:00:07.1]} 30. Qb3 {[%clk 0:00:10.8]}
30... Rf5 {[%clk 0:00:04.6]} 31. Qc3 {[%clk 0:00:10.3]} 31... e5 {[%clk
0:00:04.4]} 32. Qh3 {[%clk 0:00:07.3]} 32... Qd5 {[%clk 0:00:03.7]} 33. Qg2
{[%clk 0:00:06.5]} 33... Qd3+ {[%clk 0:00:03.7]} 34. Kg1 {[%clk 0:00:06.6]}
34... Qd7 {[%clk 0:00:03.6]} 35. Rc1 {[%clk 0:00:05.7]} 35... Kg8 {[%clk
0:00:03.7]} 36. Rh3 {[%clk 0:00:05.4]} 36... Qe7 {[%clk 0:00:03.2]} 37. Rg3
{[%clk 0:00:05.7]} 37... e4 {[%clk 0:00:03.5]} 38. Rg4 {[%clk 0:00:05.3]} 38...
Re5 {[%clk 0:00:03.2]} 39. Re1 {[%clk 0:00:05.1]} 39... Bf8 {[%clk 0:00:03.6]}
40. Rgxe4 {[%clk 0:00:04.9]} 40... Rxe4 {[%clk 0:00:04.1]} 41. Rxe4 {[%clk
0:00:05.1]} 41... Qd6 {[%clk 0:00:04.6]} 42. Qg4 {[%clk 0:00:05.4]} 42... Be7
{[%clk 0:00:04.7]} 43. Re6 {[%clk 0:00:05.5]} 43... Qc5 {[%clk 0:00:03.1]} 44.
Rxg6+ {[%clk 0:00:05.9]} 44... Kf7 {[%clk 0:00:03.5]} 45. Re6 {[%clk 0:00:06.2]}
45... Qxg5 {[%clk 0:00:03.2]} 46. Qxg5 {[%clk 0:00:06.2]} 46... Bxg5 {[%clk
0:00:04.1]} 47. Rxa6 {[%clk 0:00:07.1]} 47... Bd2 {[%clk 0:00:04.3]} 48. Ra7+
{[%clk 0:00:06.5]} 48... Ke6 {[%clk 0:00:04.2]} 49. Rb7 {[%clk 0:00:07.4]} 1-0

[Event "*** Titled Tuesday Blitz"]
[Site "Chess.com"]
[Date "2020.03.03"]
[Round "1"]
[White "Firouzja2003"]
[Black "SerGo055"]
[Result "1-0"]
[WhiteElo "3061"]
[BlackElo "2526"]
[TimeControl "180+1"]
[EndTime "13:08:18 PST"]
[Termination "Firouzja2003 won on time"]

1. h4 {[%clk 0:03:00.9]} 1... d5 {[%clk 0:02:54.9]} 2. h5 {[%clk 0:02:56.4]}
2... e5 {[%clk 0:02:54]} 3. d3 {[%clk 0:02:56]} 3... Nc6 {[%clk 0:02:52.8]} 4.
e4 {[%clk 0:02:54]} 4... dxe4 {[%clk 0:02:51.9]} 5. dxe4 {[%clk 0:02:54.9]} 5...
Qxd1+ {[%clk 0:02:51.6]} 6. Kxd1 {[%clk 0:02:55.8]} 6... f5 {[%clk 0:02:49]} 7.
Bd3 {[%clk 0:02:49.3]} 7... Nf6 {[%clk 0:02:43.6]} 8. Nc3 {[%clk 0:02:46.3]}
8... Bb4 {[%clk 0:02:38.3]} 9. Nge2 {[%clk 0:02:42.1]} 9... fxe4 {[%clk
0:02:29.5]} 10. Nxe4 {[%clk 0:02:41]} 10... Nxe4 {[%clk 0:02:29.5]} 11. Bxe4
{[%clk 0:02:40.3]} 11... Bg4 {[%clk 0:02:29.4]} 12. c3 {[%clk 0:02:24.2]} 12...
O-O-O+ {[%clk 0:02:28.3]} 13. Ke1 {[%clk 0:02:19.3]} 13... Ba5 {[%clk
0:02:02.1]} 14. f3 {[%clk 0:02:16.8]} 14... Be6 {[%clk 0:01:58.8]} 15. Bg5
{[%clk 0:02:16.8]} 15... Rd7 {[%clk 0:01:55.1]} 16. Kf2 {[%clk 0:02:10.4]} 16...
h6 {[%clk 0:01:50.2]} 17. Be3 {[%clk 0:02:08.6]} 17... Rf8 {[%clk 0:01:45.8]}
18. Rhd1 {[%clk 0:01:59.8]} 18... Bb6 {[%clk 0:01:43.2]} 19. Rxd7 {[%clk
0:01:58.6]} 19... Kxd7 {[%clk 0:01:43.1]} 20. b3 {[%clk 0:01:56]} 20... Bf5
{[%clk 0:01:33.9]} 21. Bxf5+ {[%clk 0:01:53]} 21... Rxf5 {[%clk 0:01:33.3]} 22.
Ng3 {[%clk 0:01:53.7]} 22... Rf7 {[%clk 0:01:31.1]} 23. Ne4 {[%clk 0:01:50.9]}
23... Ke6 {[%clk 0:01:31.2]} 24. Bc5 {[%clk 0:01:49.4]} 24... Rd7 {[%clk
0:01:24.3]} 25. Ke2 {[%clk 0:01:48.2]} 25... Nd8 {[%clk 0:01:12.1]} 26. a4
{[%clk 0:01:46.5]} 26... Rd5 {[%clk 0:01:00.6]} 27. b4 {[%clk 0:01:26.7]} 27...
Bxc5 {[%clk 0:00:49.5]} 28. Nxc5+ {[%clk 0:01:26]} 28... Kf5 {[%clk 0:00:49.3]}
29. Ne4 {[%clk 0:01:18.7]} 29... Ne6 {[%clk 0:00:45.7]} 30. Ke3 {[%clk
0:01:09.1]} 30... Nf4 {[%clk 0:00:36.3]} 31. g4+ {[%clk 0:01:10]} 31... Ke6
{[%clk 0:00:35.9]} 32. Nc5+ {[%clk 0:01:10.9]} 32... Kf6 {[%clk 0:00:35]} 33.
Ra2 {[%clk 0:00:52.4]} 33... b6 {[%clk 0:00:31.6]} 34. Ne4+ {[%clk 0:00:51.4]}
34... Ke6 {[%clk 0:00:31]} 35. Rd2 {[%clk 0:00:46.6]} 35... Rxd2 {[%clk
0:00:27.8]} 36. Kxd2 {[%clk 0:00:44.2]} 36... Kd5 {[%clk 0:00:27.9]} 37. Ng3
{[%clk 0:00:40.5]} 37... Ke6 {[%clk 0:00:23.5]} 38. Ke3 {[%clk 0:00:34.9]} 38...
Nd5+ {[%clk 0:00:23.4]} 39. Kd3 {[%clk 0:00:35.3]} 39... Nf4+ {[%clk 0:00:23.7]}
40. Kc4 {[%clk 0:00:31.8]} 40... c6 {[%clk 0:00:22.9]} 41. a5 {[%clk 0:00:22.6]}
41... Kf6 {[%clk 0:00:16.1]} 42. a6 {[%clk 0:00:21.7]} 42... Ke6 {[%clk
0:00:15.4]} 43. b5 {[%clk 0:00:19]} 43... cxb5+ {[%clk 0:00:10.1]} 44. Kxb5
{[%clk 0:00:19.9]} 44... Kd5 {[%clk 0:00:07.1]} 45. c4+ {[%clk 0:00:18.5]} 45...
Kd4 {[%clk 0:00:02.9]} 46. Nf5+ {[%clk 0:00:18.8]} 46... Kc3 {[%clk 0:00:03.3]}
47. Kc6 {[%clk 0:00:19]} 47... Kxc4 {[%clk 0:00:02.5]} 48. Kb7 {[%clk
0:00:19.6]} 48... b5 {[%clk 0:00:02.4]} 49. Kxa7 {[%clk 0:00:19.8]} 49... b4
{[%clk 0:00:03.1]} 50. Kb7 {[%clk 0:00:18.5]} 50... b3 {[%clk 0:00:03.7]} 51.
Ne3+ {[%clk 0:00:16.8]} 51... Kd3 {[%clk 0:00:04.1]} 52. Nd1 {[%clk 0:00:16.2]}
52... Kc2 {[%clk 0:00:02.6]} 53. a7 {[%clk 0:00:15.4]} 53... Kxd1 {[%clk
0:00:03.1]} 54. a8=Q {[%clk 0:00:16.3]} 54... b2 {[%clk 0:00:03.6]} 55. Qa4+
{[%clk 0:00:15.9]} 55... Kc1 {[%clk 0:00:03.4]} 56. Qc4+ {[%clk 0:00:16]} 56...
Kd2 {[%clk 0:00:03.1]} 57. Qb3 {[%clk 0:00:16.1]} 57... Nd3 {[%clk 0:00:02.5]}
58. Kc6 {[%clk 0:00:15.8]} 58... e4 {[%clk 0:00:02]} 59. fxe4 {[%clk 0:00:15.9]}
59... Kc1 {[%clk 0:00:01.8]} 60. Qc3+ {[%clk 0:00:15.7]} 60... Kb1 {[%clk
0:00:02.1]} 61. Qxd3+ {[%clk 0:00:16.3]} 61... Ka2 {[%clk 0:00:03]} 62. e5
{[%clk 0:00:16.9]} 62... b1=Q {[%clk 0:00:03.1]} 63. Qxb1+ {[%clk 0:00:17.1]}
1-0

[Event "*** Titled Tuesday Blitz"]
[Site "Chess.com"]
[Date "2020.03.03"]
[Round "1"]
[White "saraswathii"]
[Black "Kobalia"]
[Result "0-1"]
[WhiteElo "2224"]
[BlackElo "2617"]
[TimeControl "180+1"]
[EndTime "13:08:22 PST"]
[Termination "Kobalia won on time"]

1. e4 {[%clk 0:02:52.9]} 1... c6 {[%clk 0:02:58.3]} 2. d3 {[%clk 0:02:52.7]}
2... d5 {[%clk 0:02:58.7]} 3. Nd2 {[%clk 0:02:53.1]} 3... e5 {[%clk 0:02:56.5]}
4. Ngf3 {[%clk 0:02:53.4]} 4... Bd6 {[%clk 0:02:56.9]} 5. g3 {[%clk 0:02:53]}
5... Nf6 {[%clk 0:02:55.9]} 6. Bg2 {[%clk 0:02:52.9]} 6... O-O {[%clk
0:02:56.8]} 7. O-O {[%clk 0:02:52.3]} 7... Bg4 {[%clk 0:02:55.3]} 8. h3 {[%clk
0:02:50.8]} 8... Bh5 {[%clk 0:02:55]} 9. c3 {[%clk 0:02:49.6]} 9... Nbd7 {[%clk
0:02:53.8]} 10. Qc2 {[%clk 0:02:48.3]} 10... Re8 {[%clk 0:02:53.1]} 11. Nb3
{[%clk 0:02:47.7]} 11... a5 {[%clk 0:02:51.2]} 12. a4 {[%clk 0:02:46.8]} 12...
Nc5 {[%clk 0:02:50.8]} 13. Nxc5 {[%clk 0:02:45.8]} 13... Bxc5 {[%clk 0:02:50]}
14. exd5 {[%clk 0:02:44.5]} 14... cxd5 {[%clk 0:02:39.1]} 15. Bg5 {[%clk
0:02:35.4]} 15... h6 {[%clk 0:02:37]} 16. Bxf6 {[%clk 0:02:30.9]} 16... Qxf6
{[%clk 0:02:36.7]} 17. Nd2 {[%clk 0:02:27.7]} 17... Rad8 {[%clk 0:02:25.3]} 18.
Qb3 {[%clk 0:02:25.8]} 18... Be2 {[%clk 0:02:22.8]} 19. Bxd5 {[%clk 0:02:09.9]}
19... Bxd3 {[%clk 0:01:53.8]} 20. Ne4 {[%clk 0:01:48.3]} 20... Bxe4 {[%clk
0:01:51.7]} 21. Bxe4 {[%clk 0:01:46.5]} 21... Rd2 {[%clk 0:01:52.6]} 22. Qb5
{[%clk 0:01:46]} 22... Rc8 {[%clk 0:01:50.6]} 23. Qxb7 {[%clk 0:01:33.9]} 23...
Rcd8 {[%clk 0:01:49.1]} 24. Qb5 {[%clk 0:01:25.2]} 24... Rxf2 {[%clk 0:01:46.7]}
25. Qxc5 {[%clk 0:01:20.9]} 25... Rxf1+ {[%clk 0:01:25.3]} 26. Rxf1 {[%clk
0:01:19.4]} 26... Qe6 {[%clk 0:01:26.2]} 27. Qxa5 {[%clk 0:01:12.8]} 27... Rb8
{[%clk 0:01:21.9]} 28. Qc7 {[%clk 0:01:04.2]} 28... Rc8 {[%clk 0:01:16.1]} 29.
Qb7 {[%clk 0:00:50.8]} 29... Rd8 {[%clk 0:01:14.9]} 30. Kg2 {[%clk 0:00:44.2]}
30... g6 {[%clk 0:01:13.7]} 31. Rf2 {[%clk 0:00:36.8]} 31... f5 {[%clk
0:01:10.8]} 32. Bc2 {[%clk 0:00:33.1]} 32... Kh8 {[%clk 0:01:09.1]} 33. a5
{[%clk 0:00:30.8]} 33... e4 {[%clk 0:01:08.2]} 34. a6 {[%clk 0:00:29.1]} 34...
e3 {[%clk 0:01:08.2]} 35. Re2 {[%clk 0:00:27.2]} 35... Rd2 {[%clk 0:01:06.5]}
36. Qf3 {[%clk 0:00:25.2]} 36... Qxa6 {[%clk 0:00:59.9]} 37. Rxd2 {[%clk
0:00:21.5]} 37... exd2 {[%clk 0:00:59.7]} 38. Qd1 {[%clk 0:00:21.1]} 38... Qc6+
{[%clk 0:00:56.2]} 39. Kf2 {[%clk 0:00:20.4]} 39... Qd6 {[%clk 0:00:51.8]} 40.
b4 {[%clk 0:00:13]} 40... h5 {[%clk 0:00:50.2]} 41. Qe2 {[%clk 0:00:11.5]} 41...
h4 {[%clk 0:00:47.8]} 42. Qe8+ {[%clk 0:00:07.4]} 42... Kg7 {[%clk 0:00:46.8]}
43. Qe3 {[%clk 0:00:04.9]} 43... hxg3+ {[%clk 0:00:40.9]} 44. Qxg3 {[%clk
0:00:04.1]} 44... d1=Q {[%clk 0:00:40.6]} 45. Bxd1 {[%clk 0:00:03.7]} 45... Qxd1
{[%clk 0:00:40.6]} 46. Qc7+ {[%clk 0:00:04.3]} 46... Kh6 {[%clk 0:00:38.6]} 47.
Qf4+ {[%clk 0:00:04.4]} 47... Kh7 {[%clk 0:00:36.6]} 48. Qd4 {[%clk 0:00:03.3]}
48... Qh1 {[%clk 0:00:34.4]} 49. Qe3 {[%clk 0:00:02.5]} 49... Qh2+ {[%clk
0:00:33.2]} 50. Ke1 {[%clk 0:00:02.9]} 50... f4 {[%clk 0:00:33]} 51. Qe7+ {[%clk
0:00:01.9]} 51... Kh6 {[%clk 0:00:32.5]} 52. Qe6 {[%clk 0:00:02.8]} 52... Qg3+
{[%clk 0:00:30.4]} 53. Kd2 {[%clk 0:00:02.5]} 53... f3 {[%clk 0:00:29.6]} 54.
Qe3+ {[%clk 0:00:02.9]} 54... Kh5 {[%clk 0:00:28.9]} 55. b5 {[%clk 0:00:03.3]}
55... Qg2+ {[%clk 0:00:28.8]} 56. Kd3 {[%clk 0:00:02.7]} 56... f2 {[%clk
0:00:27.8]} 57. Qe2+ {[%clk 0:00:02.2]} 57... Kh4 {[%clk 0:00:27.2]} 0-1